[Event "Titled Tuesday Blitz July 18 Late 2023"]
[White "Liu, Casper"]
[Black "SoyuzTM4"]
[WhiteFideId "1454153"]
[WhiteElo "2418"]
[BlackElo "2193"]
[Result "1-0"]
[Round "10"]
[TimeControl "180+2"]
[Date "2023.07.18"]
[WhiteClock "0:00:58"]
[BlackClock "0:00:00"]
[Board "112"]

1. e4 {[%clk 0:03:00]}  c5 {[%clk 0:02:58]} 2. d4 {[%clk 0:03:01]}  cxd4 {[%clk 0:02:57]} 3. Qxd4 {[%clk 0:03:02]}  Nc6 {[%clk 0:02:56]} 4. Qe3 {[%clk 0:03:02]}  d6 {[%clk 0:02:54]} 5. Nc3 {[%clk 0:03:03]}  Nf6 {[%clk 0:02:52]} 6. Bd2 {[%clk 0:03:03]}  g6 {[%clk 0:02:51]} 7. O-O-O {[%clk 0:03:04]}  Bg7 {[%clk 0:02:49]} 8. h4 {[%clk 0:03:05]}  h5 {[%clk 0:02:45]} 9. Nd5 {[%clk 0:03:04]}  O-O {[%clk 0:02:41]} 10. Bc3 {[%clk 0:03:04]}  Be6 {[%clk 0:02:19]} 11. Bc4 {[%clk 0:02:59]}  Rc8 {[%clk 0:02:17]} 12. Nxf6+ {[%clk 0:02:57]}  exf6 {[%clk 0:02:15]} 13. Bxe6 {[%clk 0:02:53]}  fxe6 {[%clk 0:02:14]} 14. Qd3 {[%clk 0:02:42]}  Qe8 {[%clk 0:01:17]} 15. Qxd6 {[%clk 0:02:38]}  Bh6+ {[%clk 0:01:17]} 16. Bd2 {[%clk 0:02:32]}  Rd8 {[%clk 0:01:16]} 17. Qg3 {[%clk 0:02:29]}  Rxd2 {[%clk 0:00:58]} 18. Rxd2 {[%clk 0:02:30]}  Bxd2+ {[%clk 0:00:57]} 19. Kxd2 {[%clk 0:02:31]}  Qf7 {[%clk 0:00:57]} 20. Nf3 {[%clk 0:02:30]}  e5 {[%clk 0:00:56]} 21. Rd1 {[%clk 0:02:20]}  Kg7 {[%clk 0:00:54]} 22. b3 {[%clk 0:02:17]}  Nb4 {[%clk 0:00:48]} 23. a3 {[%clk 0:01:38]}  Rd8+ {[%clk 0:00:46]} 24. Ke2 {[%clk 0:01:38]}  Rxd1 {[%clk 0:00:41]} 25. Kxd1 {[%clk 0:01:38]}  Nc6 {[%clk 0:00:40]} 26. Nd2 {[%clk 0:01:28]}  Qe7 {[%clk 0:00:39]} 27. Nc4 {[%clk 0:01:28]}  b5 {[%clk 0:00:38]} 28. Nb2 {[%clk 0:01:24]}  Qxa3 {[%clk 0:00:36]} 29. Qc3 {[%clk 0:01:24]}  Qd6+ {[%clk 0:00:33]} 30. Nd3 {[%clk 0:01:24]}  Nd4 {[%clk 0:00:32]} 31. Qc8 {[%clk 0:01:19]}  Nxb3 {[%clk 0:00:24]} 32. Qb7+ {[%clk 0:01:18]}  Kh6 {[%clk 0:00:23]} 33. Qc8 {[%clk 0:01:14]}  Kg7 {[%clk 0:00:20]} 34. Qb7+ {[%clk 0:01:15]}  Kh6 {[%clk 0:00:20]} 35. Qxb5 {[%clk 0:01:14]}  Nd4 {[%clk 0:00:19]} 36. Qe8 {[%clk 0:01:15]}  Kg7 {[%clk 0:00:18]} 37. Qa8 {[%clk 0:01:13]}  Qc6 {[%clk 0:00:17]} 38. Qxa7+ {[%clk 0:01:13]}  Kh6 {[%clk 0:00:17]} 39. Nc5 {[%clk 0:01:03]}  Qd6 {[%clk 0:00:14]} 40. Kc1 {[%clk 0:01:03]}  Nb5 {[%clk 0:00:13]} 41. Qa8 {[%clk 0:00:59]}  Kg7 {[%clk 0:00:09]} 42. Qb7+ {[%clk 0:00:57]}  Nc7 {[%clk 0:00:09]} 43. Qxc7+ {[%clk 0:00:58]}  Qxc7 {[%clk 0:00:00]} 44. Ne6+ {[%clk 0:00:58]} 1-0


[Site "https://www.chess.com"]

[Event "Titled Tuesday Blitz July 18 Late 2023"]
[White "Hilary46"]
[Black "Burke, Paul"]
[BlackFideId "2605767"]
[WhiteElo "2679"]
[BlackElo "1979"]
[Result "1-0"]
[Round "10"]
[TimeControl "180+2"]
[Date "2023.07.18"]
[WhiteClock "0:02:06"]
[BlackClock "0:02:39"]
[Board "114"]

1. e4 {[%clk 0:03:00]}  e5 {[%clk 0:02:59]} 2. Nf3 {[%clk 0:02:53]}  Nc6 {[%clk 0:02:59]} 3. Bb5 {[%clk 0:02:54]}  f5 {[%clk 0:02:58]} 4. d3 {[%clk 0:02:53]}  Nf6 {[%clk 0:02:58]} 5. exf5 {[%clk 0:02:45]}  Be7 {[%clk 0:02:57]} 6. O-O {[%clk 0:02:43]}  O-O {[%clk 0:02:57]} 7. Bxc6 {[%clk 0:02:17]}  dxc6 {[%clk 0:02:56]} 8. Nxe5 {[%clk 0:02:17]}  Bd6 {[%clk 0:02:56]} 9. Nc4 {[%clk 0:02:15]}  Bxf5 {[%clk 0:02:56]} 10. Nxd6 {[%clk 0:02:14]}  Qxd6 {[%clk 0:02:55]} 11. Qf3 {[%clk 0:02:12]}  Rae8 {[%clk 0:02:39]} 12. Qxf5 {[%clk 0:02:06]} 1-0


[Site "https://www.chess.com"]

[Event "Titled Tuesday Blitz July 18 Late 2023"]
[White "Vargas, Mauricio"]
[Black "Awoki, Daniel Teidi"]
[WhiteFideId "4404572"]
[BlackFideId "2100827"]
[WhiteElo "1876"]
[BlackElo "2296"]
[Result "0-1"]
[Round "10"]
[TimeControl "180+2"]
[Date "2023.07.18"]
[WhiteClock "0:00:00"]
[BlackClock "0:00:10"]
[Board "115"]

1. e4 {[%clk 0:02:59]}  c5 {[%clk 0:02:38]} 2. Nc3 {[%clk 0:02:57]}  g6 {[%clk 0:02:38]} 3. f4 {[%clk 0:02:58]}  Bg7 {[%clk 0:02:37]} 4. Nf3 {[%clk 0:02:57]}  Nc6 {[%clk 0:02:38]} 5. Bb5 {[%clk 0:02:52]}  Nd4 {[%clk 0:02:36]} 6. Bf1 {[%clk 0:02:49]}  d6 {[%clk 0:02:35]} 7. d3 {[%clk 0:02:49]}  Bg4 {[%clk 0:02:33]} 8. h3 {[%clk 0:02:45]}  Bxf3 {[%clk 0:02:32]} 9. gxf3 {[%clk 0:02:45]}  e6 {[%clk 0:02:32]} 10. h4 {[%clk 0:02:25]}  Bf6 {[%clk 0:02:28]} 11. h5 {[%clk 0:02:04]}  Bh4+ {[%clk 0:02:24]} 12. Kd2 {[%clk 0:02:04]}  Qf6 {[%clk 0:02:14]} 13. Ke3 {[%clk 0:01:17]}  Bg3 {[%clk 0:02:04]} 14. Ne2 {[%clk 0:01:06]}  Nxe2 {[%clk 0:01:08]} 15. Kxe2 {[%clk 0:01:03]}  Bxf4 {[%clk 0:01:07]} 16. hxg6 {[%clk 0:01:00]}  fxg6 {[%clk 0:01:06]} 17. Bh3 {[%clk 0:00:55]}  Bxc1 {[%clk 0:01:02]} 18. Qxc1 {[%clk 0:00:52]}  Ne7 {[%clk 0:01:03]} 19. c3 {[%clk 0:00:51]}  Nc6 {[%clk 0:00:49]} 20. Qe3 {[%clk 0:00:50]}  O-O-O {[%clk 0:00:40]} 21. Raf1 {[%clk 0:00:48]}  Kb8 {[%clk 0:00:34]} 22. Kd2 {[%clk 0:00:40]}  Rdf8 {[%clk 0:00:24]} 23. Kc2 {[%clk 0:00:40]}  e5 {[%clk 0:00:14]} 24. Bd7 {[%clk 0:00:24]}  Nd8 {[%clk 0:00:13]} 25. Bh3 {[%clk 0:00:12]}  Ne6 {[%clk 0:00:13]} 26. Kb1 {[%clk 0:00:00]}  Nf4 {[%clk 0:00:10]} 0-1


[Site "https://www.chess.com"]

[Event "Titled Tuesday Blitz July 18 Late 2023"]
[White "Nakamura, Hikaru"]
[Black "Kramnik, Vladimir"]
[WhiteFideId "2016192"]
[BlackFideId "4101588"]
[WhiteElo "3255"]
[BlackElo "2990"]
[Result "1-0"]
[Round "11"]
[TimeControl "180+2"]
[Date "2023.07.18"]
[WhiteClock "0:00:08"]
[BlackClock "0:00:00"]
[Board "1"]

1. e4 {[%clk 0:03:00]}  c5 {[%clk 0:02:59]} 2. Nf3 {[%clk 0:02:59]}  e6 {[%clk 0:02:59]} 3. d4 {[%clk 0:02:59]}  cxd4 {[%clk 0:02:58]} 4. Nxd4 {[%clk 0:03:00]}  Nf6 {[%clk 0:02:58]} 5. Nc3 {[%clk 0:02:58]}  Nc6 {[%clk 0:02:59]} 6. a3 {[%clk 0:02:55]}  d6 {[%clk 0:02:56]} 7. Be3 {[%clk 0:02:53]}  Bd7 {[%clk 0:02:52]} 8. Ndb5 {[%clk 0:02:47]}  Qb8 {[%clk 0:02:49]} 9. Qd2 {[%clk 0:02:34]}  a6 {[%clk 0:02:48]} 10. Nd4 {[%clk 0:02:33]}  b5 {[%clk 0:02:41]} 11. Be2 {[%clk 0:02:27]}  Be7 {[%clk 0:02:39]} 12. g4 {[%clk 0:02:22]}  h6 {[%clk 0:02:34]} 13. h4 {[%clk 0:02:19]}  Ne5 {[%clk 0:02:27]} 14. Rg1 {[%clk 0:02:16]}  Qb7 {[%clk 0:02:19]} 15. f3 {[%clk 0:02:11]}  Rc8 {[%clk 0:02:15]} 16. g5 {[%clk 0:02:09]}  hxg5 {[%clk 0:02:14]} 17. hxg5 {[%clk 0:02:10]}  Nh5 {[%clk 0:02:13]} 18. O-O-O {[%clk 0:02:01]}  g6 {[%clk 0:02:07]} 19. f4 {[%clk 0:01:59]}  Nc4 {[%clk 0:02:07]} 20. Bxc4 {[%clk 0:01:57]}  bxc4 {[%clk 0:01:59]} 21. Kb1 {[%clk 0:01:34]}  Rb8 {[%clk 0:01:58]} 22. Qc1 {[%clk 0:01:34]}  d5 {[%clk 0:01:56]} 23. Ka1 {[%clk 0:01:29]}  dxe4 {[%clk 0:01:55]} 24. Nde2 {[%clk 0:01:30]}  O-O {[%clk 0:01:49]} 25. Ng3 {[%clk 0:01:24]}  Rfd8 {[%clk 0:01:41]} 26. Nxh5 {[%clk 0:01:01]}  gxh5 {[%clk 0:01:41]} 27. Rh1 {[%clk 0:01:02]}  e5 {[%clk 0:01:34]} 28. Rxh5 {[%clk 0:00:42]}  Bg4 {[%clk 0:01:33]} 29. Rxd8+ {[%clk 0:00:41]}  Rxd8 {[%clk 0:01:24]} 30. Rh4 {[%clk 0:00:42]}  Bf3 {[%clk 0:01:24]} 31. fxe5 {[%clk 0:00:41]}  Qc7 {[%clk 0:01:10]} 32. e6 {[%clk 0:00:27]}  Bf8 {[%clk 0:00:43]} 33. exf7+ {[%clk 0:00:24]}  Qxf7 {[%clk 0:00:42]} 34. g6 {[%clk 0:00:23]}  Qxg6 {[%clk 0:00:36]} 35. Ka2 {[%clk 0:00:21]}  Bg7 {[%clk 0:00:34]} 36. Rh2 {[%clk 0:00:20]}  Qg3 {[%clk 0:00:28]} 37. Rd2 {[%clk 0:00:19]}  Rb8 {[%clk 0:00:24]} 38. Rd7 {[%clk 0:00:17]}  Qg4 {[%clk 0:00:22]} 39. Ra7 {[%clk 0:00:14]}  Qg6 {[%clk 0:00:18]} 40. Qd2 {[%clk 0:00:14]}  Qf6 {[%clk 0:00:14]} 41. Qd5+ {[%clk 0:00:12]}  Kh7 {[%clk 0:00:14]} 42. Bd4 {[%clk 0:00:09]}  Rd8 {[%clk 0:00:00]} 43. Bxf6 {[%clk 0:00:08]} 1-0


[Site "https://www.chess.com"]

[Event "Titled Tuesday Blitz July 18 Late 2023"]
[White "Rasulov, Vugar"]
[Black "Xiong, Jeffery"]
[WhiteFideId "13402390"]
[BlackFideId "2047640"]
[WhiteElo "2896"]
[BlackElo "2996"]
[Result "0-1"]
[Round "11"]
[TimeControl "180+2"]
[Date "2023.07.18"]
[WhiteClock "0:00:00"]
[BlackClock "0:01:03"]
[Board "2"]

1. Nf3 {[%clk 0:03:00]}  c5 {[%clk 0:03:00]} 2. c4 {[%clk 0:03:00]}  Nf6 {[%clk 0:02:59]} 3. g3 {[%clk 0:03:00]}  Nc6 {[%clk 0:02:56]} 4. Bg2 {[%clk 0:03:00]}  d5 {[%clk 0:02:56]} 5. cxd5 {[%clk 0:03:00]}  Nxd5 {[%clk 0:02:57]} 6. O-O {[%clk 0:03:00]}  e5 {[%clk 0:02:54]} 7. Nc3 {[%clk 0:03:00]}  Nc7 {[%clk 0:02:52]} 8. b3 {[%clk 0:02:59]}  Be7 {[%clk 0:02:49]} 9. Bb2 {[%clk 0:02:59]}  O-O {[%clk 0:02:48]} 10. Rc1 {[%clk 0:02:59]}  f6 {[%clk 0:02:44]} 11. a3 {[%clk 0:02:50]}  Be6 {[%clk 0:02:43]} 12. d3 {[%clk 0:02:48]}  Qd7 {[%clk 0:02:40]} 13. Ne4 {[%clk 0:02:41]}  b6 {[%clk 0:02:40]} 14. Nfd2 {[%clk 0:02:24]}  Rac8 {[%clk 0:02:34]} 15. b4 {[%clk 0:02:23]}  f5 {[%clk 0:02:29]} 16. Nc3 {[%clk 0:02:04]}  cxb4 {[%clk 0:02:29]} 17. axb4 {[%clk 0:02:05]}  Nxb4 {[%clk 0:02:25]} 18. Nf3 {[%clk 0:01:57]}  Bf6 {[%clk 0:02:19]} 19. Ba3 {[%clk 0:01:56]}  a5 {[%clk 0:02:18]} 20. Na4 {[%clk 0:01:42]}  Qb5 {[%clk 0:02:05]} 21. Nc3 {[%clk 0:01:33]}  Qd7 {[%clk 0:02:05]} 22. Na4 {[%clk 0:01:33]}  Rb8 {[%clk 0:02:05]} 23. d4 {[%clk 0:01:25]}  exd4 {[%clk 0:02:03]} 24. Nb2 {[%clk 0:01:14]}  Nb5 {[%clk 0:02:02]} 25. Bxb4 {[%clk 0:01:09]}  axb4 {[%clk 0:02:03]} 26. Nd3 {[%clk 0:01:05]}  Nc3 {[%clk 0:02:03]} 27. Qd2 {[%clk 0:01:05]}  b3 {[%clk 0:02:02]} 28. Nde5 {[%clk 0:00:55]}  Bxe5 {[%clk 0:01:49]} 29. Nxe5 {[%clk 0:00:56]}  Qb5 {[%clk 0:01:50]} 30. Nc6 {[%clk 0:00:30]}  Nxe2+ {[%clk 0:01:36]} 31. Kh1 {[%clk 0:00:30]}  Nxc1 {[%clk 0:01:37]} 32. Rxc1 {[%clk 0:00:19]}  Rbc8 {[%clk 0:01:12]} 33. Ne7+ {[%clk 0:00:18]}  Kf7 {[%clk 0:01:13]} 34. Nxc8 {[%clk 0:00:18]}  Rxc8 {[%clk 0:01:14]} 35. Rb1 {[%clk 0:00:12]}  Qc5 {[%clk 0:01:09]} 36. h4 {[%clk 0:00:09]}  Qc2 {[%clk 0:01:07]} 37. Qe1 {[%clk 0:00:06]}  b2 {[%clk 0:01:08]} 38. Kh2 {[%clk 0:00:05]}  Ba2 {[%clk 0:01:07]} 39. Qe5 {[%clk 0:00:00]}  Qc5 {[%clk 0:01:03]} 0-1


[Site "https://www.chess.com"]

[Event "Titled Tuesday Blitz July 18 Late 2023"]
[White "Bortnyk, Olexandr"]
[Black "Matlakov, Maxim"]
[WhiteFideId "14120828"]
[BlackFideId "4168003"]
[WhiteElo "3037"]
[BlackElo "2982"]
[Result "1-0"]
[Round "11"]
[TimeControl "180+2"]
[Date "2023.07.18"]
[WhiteClock "0:00:05"]
[BlackClock "0:00:00"]
[Board "3"]

1. d4 {[%clk 0:03:00]}  Nf6 {[%clk 0:02:59]} 2. Nc3 {[%clk 0:02:58]}  d5 {[%clk 0:03:00]} 3. Bf4 {[%clk 0:02:58]}  c5 {[%clk 0:02:54]} 4. e4 {[%clk 0:02:58]}  cxd4 {[%clk 0:02:50]} 5. Qxd4 {[%clk 0:02:58]}  Nc6 {[%clk 0:02:51]} 6. Bb5 {[%clk 0:02:59]}  Bd7 {[%clk 0:02:49]} 7. Bxc6 {[%clk 0:02:59]}  Bxc6 {[%clk 0:02:48]} 8. e5 {[%clk 0:03:00]}  Nd7 {[%clk 0:02:48]} 9. e6 {[%clk 0:03:00]}  fxe6 {[%clk 0:02:48]} 10. Nf3 {[%clk 0:03:01]}  Qb6 {[%clk 0:02:45]} 11. Qd2 {[%clk 0:03:01]}  g6 {[%clk 0:02:24]} 12. O-O-O {[%clk 0:03:00]}  Bg7 {[%clk 0:02:24]} 13. Rhe1 {[%clk 0:03:01]}  O-O {[%clk 0:02:17]} 14. Bh6 {[%clk 0:02:58]}  Rf6 {[%clk 0:02:01]} 15. Bg5 {[%clk 0:02:46]}  Rf5 {[%clk 0:02:00]} 16. Rxe6 {[%clk 0:02:32]}  d4 {[%clk 0:01:58]} 17. Ne4 {[%clk 0:02:27]}  d3 {[%clk 0:01:45]} 18. c3 {[%clk 0:01:53]}  Qa5 {[%clk 0:01:29]} 19. Qxd3 {[%clk 0:01:35]}  Rd5 {[%clk 0:01:22]} 20. Qc2 {[%clk 0:00:57]}  Qxa2 {[%clk 0:01:17]} 21. Rxd5 {[%clk 0:00:57]}  Qxd5 {[%clk 0:00:38]} 22. Rxe7 {[%clk 0:00:57]}  Rf8 {[%clk 0:00:38]} 23. Qd2 {[%clk 0:00:49]}  Qxd2+ {[%clk 0:00:32]} 24. Nfxd2 {[%clk 0:00:50]}  Ne5 {[%clk 0:00:29]} 25. f3 {[%clk 0:00:44]}  Rf7 {[%clk 0:00:26]} 26. Rxf7 {[%clk 0:00:36]}  Kxf7 {[%clk 0:00:27]} 27. Be3 {[%clk 0:00:35]}  a6 {[%clk 0:00:24]} 28. Kc2 {[%clk 0:00:34]}  h6 {[%clk 0:00:24]} 29. Bd4 {[%clk 0:00:30]}  g5 {[%clk 0:00:24]} 30. Bxe5 {[%clk 0:00:27]}  Bxe5 {[%clk 0:00:24]} 31. h3 {[%clk 0:00:28]}  Kg6 {[%clk 0:00:24]} 32. Kd3 {[%clk 0:00:28]}  h5 {[%clk 0:00:23]} 33. b3 {[%clk 0:00:27]}  Kf5 {[%clk 0:00:20]} 34. Nc4 {[%clk 0:00:26]}  Bc7 {[%clk 0:00:20]} 35. Ne3+ {[%clk 0:00:25]}  Kg6 {[%clk 0:00:18]} 36. c4 {[%clk 0:00:24]}  a5 {[%clk 0:00:17]} 37. Nd5 {[%clk 0:00:23]}  Bd8 {[%clk 0:00:16]} 38. g4 {[%clk 0:00:21]}  b5 {[%clk 0:00:13]} 39. Nc5 {[%clk 0:00:16]}  Kf7 {[%clk 0:00:07]} 40. Ne4 {[%clk 0:00:12]}  Ke6 {[%clk 0:00:06]} 41. gxh5 {[%clk 0:00:08]}  a4 {[%clk 0:00:05]} 42. Ndc3 {[%clk 0:00:06]}  axb3 {[%clk 0:00:04]} 43. cxb5 {[%clk 0:00:06]}  Be8 {[%clk 0:00:04]} 44. h6 {[%clk 0:00:06]}  Bg6 {[%clk 0:00:03]} 45. Kc4 {[%clk 0:00:07]}  Kf5 {[%clk 0:00:03]} 46. Kxb3 {[%clk 0:00:06]}  Kf4 {[%clk 0:00:03]} 47. Nc5 {[%clk 0:00:04]}  Kxf3 {[%clk 0:00:03]} 48. Kc4 {[%clk 0:00:04]}  Kg3 {[%clk 0:00:03]} 49. Ne6 {[%clk 0:00:04]}  Bf6 {[%clk 0:00:03]} 50. Nd5 {[%clk 0:00:04]}  Be5 {[%clk 0:00:03]} 51. b6 {[%clk 0:00:04]}  Kxh3 {[%clk 0:00:02]} 52. b7 {[%clk 0:00:04]}  g4 {[%clk 0:00:02]} 53. Nec7 {[%clk 0:00:04]}  Bf7 {[%clk 0:00:01]} 54. b8=Q {[%clk 0:00:04]}  g3 {[%clk 0:00:02]} 55. Qc8+ {[%clk 0:00:04]}  Kh2 {[%clk 0:00:02]} 56. Qf5 {[%clk 0:00:04]}  g2 {[%clk 0:00:00]} 57. Qxe5+ {[%clk 0:00:05]} 1-0


[Site "https://www.chess.com"]

[Event "Titled Tuesday Blitz July 18 Late 2023"]
[White "Paravyan, David"]
[Black "Anton Guijarro, David"]
[WhiteFideId "4194985"]
[BlackFideId "2285525"]
[WhiteElo "3029"]
[BlackElo "2935"]
[Result "1-0"]
[Round "11"]
[TimeControl "180+2"]
[Date "2023.07.18"]
[WhiteClock "0:01:03"]
[BlackClock "0:00:33"]
[Board "5"]

1. e4 {[%clk 0:03:00]}  c6 {[%clk 0:03:00]} 2. d4 {[%clk 0:03:00]}  a6 {[%clk 0:03:01]} 3. Be2 {[%clk 0:02:58]}  d5 {[%clk 0:02:57]} 4. e5 {[%clk 0:02:58]}  c5 {[%clk 0:02:56]} 5. Nf3 {[%clk 0:02:58]}  Nc6 {[%clk 0:02:52]} 6. dxc5 {[%clk 0:02:58]}  Bg4 {[%clk 0:02:50]} 7. Be3 {[%clk 0:02:50]}  Bxf3 {[%clk 0:02:38]} 8. Bxf3 {[%clk 0:02:51]}  e6 {[%clk 0:02:39]} 9. c4 {[%clk 0:02:52]}  Nge7 {[%clk 0:02:26]} 10. cxd5 {[%clk 0:02:49]}  Nxd5 {[%clk 0:02:26]} 11. Bxd5 {[%clk 0:02:45]}  exd5 {[%clk 0:02:27]} 12. O-O {[%clk 0:02:43]}  d4 {[%clk 0:02:27]} 13. Bf4 {[%clk 0:02:35]}  Bxc5 {[%clk 0:02:27]} 14. Nd2 {[%clk 0:02:35]}  O-O {[%clk 0:02:23]} 15. Ne4 {[%clk 0:02:36]}  Qd5 {[%clk 0:02:23]} 16. Qf3 {[%clk 0:02:33]}  Rad8 {[%clk 0:02:09]} 17. Rfe1 {[%clk 0:02:27]}  Be7 {[%clk 0:02:04]} 18. Qg3 {[%clk 0:02:23]}  Kh8 {[%clk 0:02:02]} 19. h4 {[%clk 0:02:16]}  Rfe8 {[%clk 0:01:49]} 20. h5 {[%clk 0:02:09]}  h6 {[%clk 0:01:48]} 21. Rad1 {[%clk 0:01:58]}  Bb4 {[%clk 0:01:37]} 22. Bxh6 {[%clk 0:01:54]}  gxh6 {[%clk 0:00:56]} 23. Qf4 {[%clk 0:01:52]}  Qe6 {[%clk 0:00:36]} 24. Nf6 {[%clk 0:01:50]}  Kg7 {[%clk 0:00:37]} 25. Re2 {[%clk 0:01:04]}  Rh8 {[%clk 0:00:35]} 26. Rd3 {[%clk 0:01:03]}  Be7 {[%clk 0:00:34]} 27. Rg3+ {[%clk 0:01:02]}  Kf8 {[%clk 0:00:32]} 28. Qxh6+ {[%clk 0:01:02]}  Rxh6 {[%clk 0:00:33]} 29. Rg8# {[%clk 0:01:03]} 1-0


[Site "https://www.chess.com"]

[Event "Titled Tuesday Blitz July 18 Late 2023"]
[White "Zhigalko, Sergei"]
[Black "Duda, Jan-Krzysztof"]
[WhiteFideId "13502956"]
[BlackFideId "1170546"]
[WhiteElo "2890"]
[BlackElo "3011"]
[Result "1-0"]
[Round "11"]
[TimeControl "180+2"]
[Date "2023.07.18"]
[WhiteClock "0:00:04"]
[BlackClock "0:00:00"]
[Board "9"]

1. e4 {[%clk 0:03:00]}  e6 {[%clk 0:03:00]} 2. d4 {[%clk 0:03:01]}  d5 {[%clk 0:03:01]} 3. e5 {[%clk 0:03:01]}  c5 {[%clk 0:03:01]} 4. c3 {[%clk 0:03:02]}  Bd7 {[%clk 0:03:02]} 5. Nf3 {[%clk 0:03:02]}  a6 {[%clk 0:03:01]} 6. Be2 {[%clk 0:03:02]}  cxd4 {[%clk 0:02:59]} 7. cxd4 {[%clk 0:03:01]}  Bb5 {[%clk 0:02:59]} 8. Bxb5+ {[%clk 0:02:59]}  axb5 {[%clk 0:03:00]} 9. O-O {[%clk 0:02:59]}  Nc6 {[%clk 0:02:59]} 10. Nc3 {[%clk 0:02:57]}  b4 {[%clk 0:02:56]} 11. Ne2 {[%clk 0:02:57]}  Nge7 {[%clk 0:02:55]} 12. Ng3 {[%clk 0:02:53]}  Qb6 {[%clk 0:02:34]} 13. Be3 {[%clk 0:02:51]}  h5 {[%clk 0:02:32]} 14. h4 {[%clk 0:02:35]}  g6 {[%clk 0:02:32]} 15. Qd2 {[%clk 0:02:31]}  Nc8 {[%clk 0:02:08]} 16. Rfc1 {[%clk 0:02:28]}  Be7 {[%clk 0:02:06]} 17. Bg5 {[%clk 0:02:14]}  Bxg5 {[%clk 0:01:53]} 18. Qxg5 {[%clk 0:02:15]}  Nxd4 {[%clk 0:01:43]} 19. Nxd4 {[%clk 0:02:16]}  Qxd4 {[%clk 0:01:43]} 20. Rc7 {[%clk 0:02:15]}  Qg4 {[%clk 0:01:34]} 21. Qf6 {[%clk 0:01:49]}  O-O {[%clk 0:01:34]} 22. Rac1 {[%clk 0:01:21]}  Nb6 {[%clk 0:01:01]} 23. b3 {[%clk 0:01:02]}  d4 {[%clk 0:01:01]} 24. Rxb7 {[%clk 0:00:19]}  Nd5 {[%clk 0:01:00]} 25. Qg5 {[%clk 0:00:17]}  Rfc8 {[%clk 0:01:01]} 26. Re1 {[%clk 0:00:06]}  Rxa2 {[%clk 0:00:43]} 27. Ne4 {[%clk 0:00:06]}  Qxg5 {[%clk 0:00:34]} 28. hxg5 {[%clk 0:00:05]}  d3 {[%clk 0:00:30]} 29. Rd1 {[%clk 0:00:05]}  Nc3 {[%clk 0:00:30]} 30. Nf6+ {[%clk 0:00:04]}  Kg7 {[%clk 0:00:20]} 31. Rxd3 {[%clk 0:00:05]}  Re2 {[%clk 0:00:03]} 32. Rdd7 {[%clk 0:00:04]}  Rf8 {[%clk 0:00:02]} 33. Ne8+ {[%clk 0:00:02]}  Kg8 {[%clk 0:00:01]} 34. Nf6+ {[%clk 0:00:03]}  Kg7 {[%clk 0:00:01]} 35. f4 {[%clk 0:00:03]}  Re3 {[%clk 0:00:01]} 36. Ne8+ {[%clk 0:00:03]}  Kg8 {[%clk 0:00:00]} 37. Kf2 {[%clk 0:00:04]} 1-0


[Site "https://www.chess.com"]

[Event "Titled Tuesday Blitz July 18 Late 2023"]
[White "Yoo, Christopher Woojin"]
[Black "Moskalenko, Alexander"]
[WhiteFideId "30909694"]
[BlackFideId "4155351"]
[WhiteElo "2976"]
[BlackElo "2885"]
[Result "0-1"]
[Round "11"]
[TimeControl "180+2"]
[Date "2023.07.18"]
[WhiteClock "0:00:00"]
[BlackClock "0:00:32"]
[Board "10"]

1. Nf3 {[%clk 0:03:00]}  Nf6 {[%clk 0:02:56]} 2. g3 {[%clk 0:03:00]}  g6 {[%clk 0:02:56]} 3. Bg2 {[%clk 0:03:00]}  Bg7 {[%clk 0:02:57]} 4. O-O {[%clk 0:03:00]}  O-O {[%clk 0:02:58]} 5. b3 {[%clk 0:02:59]}  d6 {[%clk 0:02:54]} 6. d4 {[%clk 0:02:58]}  e5 {[%clk 0:02:55]} 7. dxe5 {[%clk 0:02:56]}  dxe5 {[%clk 0:02:56]} 8. Bb2 {[%clk 0:02:39]}  e4 {[%clk 0:02:50]} 9. Qxd8 {[%clk 0:02:33]}  Rxd8 {[%clk 0:02:50]} 10. Nfd2 {[%clk 0:02:21]}  Bf5 {[%clk 0:01:51]} 11. Bxf6 {[%clk 0:01:49]}  Bxf6 {[%clk 0:01:51]} 12. c3 {[%clk 0:01:49]}  Re8 {[%clk 0:01:46]} 13. h3 {[%clk 0:01:33]}  h5 {[%clk 0:01:46]} 14. g4 {[%clk 0:01:10]}  hxg4 {[%clk 0:01:46]} 15. hxg4 {[%clk 0:01:10]}  Bxg4 {[%clk 0:01:47]} 16. Nxe4 {[%clk 0:01:11]}  Bg7 {[%clk 0:01:45]} 17. Na3 {[%clk 0:00:50]}  Nc6 {[%clk 0:01:40]} 18. Nb5 {[%clk 0:00:43]}  Re7 {[%clk 0:01:40]} 19. f3 {[%clk 0:00:28]}  Bf5 {[%clk 0:01:41]} 20. Ng3 {[%clk 0:00:24]}  a6 {[%clk 0:01:36]} 21. Na3 {[%clk 0:00:17]}  Bxc3 {[%clk 0:01:34]} 22. Nxf5 {[%clk 0:00:17]}  gxf5 {[%clk 0:01:33]} 23. Rad1 {[%clk 0:00:18]}  Bd4+ {[%clk 0:01:34]} 24. Kh2 {[%clk 0:00:16]}  Rxe2 {[%clk 0:01:33]} 25. f4 {[%clk 0:00:16]}  Kg7 {[%clk 0:01:31]} 26. Kg3 {[%clk 0:00:15]}  Bc5 {[%clk 0:01:22]} 27. Bxc6 {[%clk 0:00:13]}  bxc6 {[%clk 0:01:20]} 28. Nc4 {[%clk 0:00:13]}  Rxa2 {[%clk 0:01:00]} 29. Ne5 {[%clk 0:00:10]}  Bd6 {[%clk 0:00:57]} 30. Nc4 {[%clk 0:00:09]}  Rd8 {[%clk 0:00:53]} 31. Rh1 {[%clk 0:00:07]}  Rc2 {[%clk 0:00:50]} 32. Rhg1 {[%clk 0:00:01]}  Kf6 {[%clk 0:00:49]} 33. Rh1 {[%clk 0:00:01]}  Rc3+ {[%clk 0:00:48]} 34. Kf2 {[%clk 0:00:01]}  Bc5+ {[%clk 0:00:47]} 35. Ke2 {[%clk 0:00:02]}  Rxd1 {[%clk 0:00:47]} 36. Rxd1 {[%clk 0:00:03]}  Rxb3 {[%clk 0:00:46]} 37. Rd7 {[%clk 0:00:03]}  Bb6 {[%clk 0:00:38]} 38. Ne5 {[%clk 0:00:03]}  Ke6 {[%clk 0:00:39]} 39. Rxf7 {[%clk 0:00:02]}  a5 {[%clk 0:00:40]} 40. Rh7 {[%clk 0:00:02]}  a4 {[%clk 0:00:40]} 41. Nxc6 {[%clk 0:00:02]}  a3 {[%clk 0:00:38]} 42. Rh6+ {[%clk 0:00:02]}  Kd5 {[%clk 0:00:37]} 43. Ne7+ {[%clk 0:00:02]}  Kc4 {[%clk 0:00:35]} 44. Rc6+ {[%clk 0:00:02]}  Kb5 {[%clk 0:00:35]} 45. Rc1 {[%clk 0:00:03]}  a2 {[%clk 0:00:33]} 46. Ra1 {[%clk 0:00:03]}  Ra3 {[%clk 0:00:33]} 47. Nxf5 {[%clk 0:00:03]}  Kc4 {[%clk 0:00:32]} 48. Kd2 {[%clk 0:00:00]}  Kb3 {[%clk 0:00:32]} 0-1


[Site "https://www.chess.com"]